fUSD/lending_fUSD_20250510
["ID","MTS","AMOUNT","RATE_DAILY","PERIOD"]
[360526878,1746843032759,-197.192869,0.00019896,2]
[360526880,1746843032769,-1585.3079832,0.00019899,2]
[360526882,1746843032778,-583.34724856,0.000199,2]
[360526884,1746843032787,-171.29657148,0.000199,2]
[360526886,1746843032796,-154.18,0.00019955,2]
[360526888,1746843032805,-972.0,0.00019956,2]
[360526889,1746843032814,-371.21,0.00019956,2]
[360526890,1746843032823,-27161.262974,0.00019959,2]
[360526891,1746843032833,-46196.18339341,0.00019959,2]
[360526892,1746843032848,-1054.93798175,0.00019959,2]
[360526923,1746843038192,-2383.29664133,0.00019895,2]
[360526924,1746843038201,-492.04484683,0.00019959,2]
[360526925,1746843038301,-455.01856339,0.00019959,2]
[360526926,1746843038314,-2128.53015,0.00019959,2]
[360526927,1746843038327,-757.5999999,0.00019959,2]
[360526928,1746843038407,-759.19586436,0.00019959,2]
[360526929,1746843038461,-3373.40000004,0.00019959,2]
[360526930,1746843038473,-2431.50605029,0.00019959,2]
[360526933,1746843040392,-2383.29664133,0.000199,2]
[360526934,1746843040403,-1548.97397207,0.00019959,2]
[360526935,1746843040415,-1374.85499992,0.00019959,2]
[360526936,1746843040426,-1172.1458951,0.00019959,2]
[360526937,1746843040472,-2000.0,0.00019959,2]
[360526938,1746843040483,-607.3552,0.00019959,2]
[360526939,1746843040658,-26.41186924,0.00019959,2]
[360526940,1746843040668,-2396.70239084,0.00019959,2]
[360526941,1746843040680,-1573.54203795,0.00019959,2]
[360526942,1746843040712,-1037.99999985,0.00019959,2]
[360526943,1746843040767,-517.10590911,0.00019959,2]
[360526944,1746843040778,-13547.26176366,0.00019959,2]
[360526946,1746843044993,-649.32987711,0.00019959,2]
[360526948,1746843045098,-1300.0,0.00019959,2]
[360526949,1746843045154,-1518.35981725,0.00019959,2]
[360526950,1746843045365,-15961.88753753,0.00019959,2]
[360526951,1746843045376,-1534.39,0.00019959,2]
[360526952,1746843045386,-356.78010119,0.00019964,2]
[360526953,1746843045396,-400.3142755,0.00019964,2]
[360526954,1746843045405,-400.0,0.00019964,2]
[360526955,1746843045415,-454.20651629,0.00019965,2]
[360526956,1746843045424,-292.20978476,0.00019965,2]
[360526957,1746843045434,-531.07,0.00019965,2]
[360526958,1746843045443,-400.0,0.00019965,2]
[360526959,1746843045453,-459.36,0.00019965,2]
[360526960,1746843045463,-157.076941,0.00019965,2]
[360526961,1746843045473,-201.59612834,0.00019965,2]
[360526962,1746843045482,-158.469507,0.00019965,2]
[360526964,1746843045491,-400.0,0.00019965,2]
[360526966,1746843045500,-400.0,0.00019965,2]
[360526968,1746843045509,-400.0,0.00019965,2]
[360526970,1746843045519,-400.0,0.00019965,2]
[360526972,1746843045528,-197.77465445,0.00019965,2]
[360526974,1746843045537,-151.0,0.00019965,2]
[360526976,1746843045546,-400.0,0.00019965,2]
[360526978,1746843045557,-178.738579,0.00019965,2]
[360526979,1746843045566,-400.0,0.00019965,2]
[360526980,1746843045575,-155.521842,0.00019965,2]
[360526981,1746843045584,-400.0,0.00019965,2]
[360526982,1746843045594,-400.0,0.00019965,2]
[360526983,1746843045603,-400.0,0.00019965,2]
[360526984,1746843045614,-400.0,0.00019965,2]
[360526985,1746843045623,-400.0,0.00019965,2]
[360526986,1746843045633,-151.0,0.00019965,2]
[360526987,1746843045642,-161.870014,0.00019965,2]
[360526988,1746843045651,-540.51,0.00019965,2]
[360526989,1746843045661,-274.860179,0.00019965,2]
[360526990,1746843045670,-400.0,0.00019965,2]
[360526991,1746843045680,-400.0,0.00019965,2]
[360526992,1746843045689,-400.0,0.00019965,2]
[360526993,1746843045698,-400.0,0.00019965,2]
[360526994,1746843045708,-400.0,0.00019965,2]
[360526995,1746843045717,-400.0,0.00019965,2]
[360526996,1746843045727,-400.0,0.00019965,2]
[360526997,1746843045736,-400.0,0.00019965,2]
[360526998,1746843045746,-500.0,0.00019965,2]
[360526999,1746843045755,-400.0,0.00019965,2]
[360527000,1746843045764,-400.0,0.00019965,2]
[360527001,1746843045773,-527.0,0.00019965,2]
[360527002,1746843045782,-400.0,0.00019965,2]
[360527003,1746843045792,-955.43,0.00019965,2]
[360527004,1746843045802,-480.24,0.00019965,2]
[360527005,1746843045812,-213.22829769,0.00019965,2]
[360527006,1746843045821,-400.0,0.00019965,2]
[360527007,1746843045830,-400.0,0.00019965,2]
[360527008,1746843045841,-400.0,0.00019965,2]
[360527009,1746843045850,-400.0,0.00019965,2]
[360527010,1746843045859,-350.0,0.00019965,2]
[360527011,1746843045868,-400.0,0.00019965,2]
[360527012,1746843045877,-450.0,0.00019965,2]
[360527013,1746843045886,-400.0,0.00019965,2]
[360527014,1746843045895,-400.0,0.00019965,2]
[360527015,1746843045904,-336.94246137,0.00019965,2]
[360527016,1746843045913,-400.0,0.00019965,2]
[360527017,1746843045923,-400.0,0.00019965,2]
[360527018,1746843045932,-1535.96,0.00019965,2]
[360527019,1746843045941,-400.0,0.00019965,2]
[360527020,1746843045950,-400.0,0.00019965,2]
[360527021,1746843045959,-442.46,0.00019965,2]
[360527022,1746843045968,-400.0,0.00019965,2]
[360527023,1746843045977,-445.45,0.00019965,2]
[360527024,1746843045987,-489.08739736,0.00019965,2]
[360527025,1746843045996,-400.0,0.00019965,2]
[360527026,1746843046005,-530.58,0.00019965,2]
[360527027,1746843046015,-400.0,0.00019965,2]
[360527028,1746843046023,-400.0,0.00019965,2]
[360527029,1746843046033,-3611.8,0.00019965,2]
[360527030,1746843046042,-400.0,0.00019965,2]
[360527031,1746843046051,-530.84007793,0.00019965,2]
[360527032,1746843046060,-400.0,0.00019965,2]
[360527033,1746843046069,-400.0,0.00019965,2]
[360527034,1746843046078,-400.0,0.00019965,2]
[360527035,1746843046087,-500.0,0.00019965,2]
[360527036,1746843046096,-500.0,0.00019965,2]
[360527037,1746843046105,-500.0,0.00019965,2]
[360527038,1746843046114,-500.0,0.00019965,2]
[360527039,1746843046124,-500.0,0.00019965,2]
[360527040,1746843046134,-500.0,0.00019965,2]
[360527041,1746843046143,-599.30920654,0.00019965,2]
[360527042,1746843046152,-500.0,0.00019965,2]
[360527043,1746843046162,-163.4520487,0.00019965,2]
[360527044,1746843046171,-500.0,0.00019965,2]
[360527045,1746843046180,-500.0,0.00019965,2]
[360527046,1746843046189,-500.0,0.00019965,2]
[360527047,1746843046198,-500.0,0.00019965,2]
[360527048,1746843046208,-500.0,0.00019965,2]
[360527049,1746843046219,-500.0,0.00019965,2]
[360527050,1746843046228,-500.0,0.00019965,2]
[360527051,1746843046242,-500.0,0.00019965,2]
[360527052,1746843046252,-500.0,0.00019965,2]
[360527053,1746843046262,-500.0,0.00019965,2]
[360527054,1746843046271,-500.0,0.00019965,2]
[360527055,1746843046282,-500.0,0.00019965,2]
[360527056,1746843046291,-500.0,0.00019965,2]
[360527057,1746843046301,-500.0,0.00019965,2]
[360527058,1746843046313,-500.0,0.00019965,2]
[360527059,1746843046323,-500.0,0.00019965,2]
[360527060,1746843046332,-500.0,0.00019965,2]
[360527061,1746843046342,-500.0,0.00019965,2]
[360527062,1746843046351,-500.0,0.00019965,2]
[360527063,1746843046360,-500.0,0.00019965,2]
[360527064,1746843046369,-500.0,0.00019965,2]
[360527065,1746843046379,-500.0,0.00019965,2]
[360527066,1746843046388,-500.0,0.00019965,2]
[360527067,1746843046397,-500.0,0.00019965,2]
[360527068,1746843046406,-500.0,0.00019965,2]
[360527069,1746843046417,-302.1545758,0.00019965,2]
[360527070,1746843046495,-197.8454242,0.00019965,2]
[360527071,1746843046505,-233.38419225,0.00019965,2]
[360527072,1746843091515,250.0,0.00017,2]
[360527073,1746843092575,300.0,0.00019,2]
[360527077,1746843179814,340.0,0.000195,2]
[360527078,1746843192304,340.0,0.000195,2]
[360527079,1746843233310,534.48,0.0001896,2]
[360527080,1746843316263,42606.12,0.00018943,2]
[360527081,1746843352462,150.0,0.000195,2]
[360527082,1746843398507,6231.0,0.0003,30]
[360527083,1746843420917,10000.0,0.000195,2]
[360527084,1746843432755,155.11,0.000195,2]
[360527085,1746843433675,6636.059,0.0003,30]
[360527086,1746843434315,787.0,0.0003,30]
[360527087,1746843569115,159.89460603,0.00030136,120]
[360527089,1746843608041,378.091285,7.945e-05,2]
[360527090,1746843713117,150.0,0.00018986,7]
[360527091,1746843774619,501.82,0.0003,30]
[360527092,1746843924177,1000.0,0.00018933,2]
[360527093,1746843935981,1508.82,0.0003,30]
[360527094,1746843956487,17181.49602862,6.94e-05,2]
[360527095,1746843968193,2407.59313715,8e-05,2]
[360527098,1746844024238,1617.14945302,0.0003,30]
[360527099,1746844033262,1521.14962094,0.00015,2]
[360527100,1746844036547,2339.07667675,0.00015,2]
[360527101,1746844042654,1645.39920277,0.0001305,2]
[360527102,1746844077482,4772.99742213,0.0001,2]
[360527103,1746844097843,200.0,0.0001634,2]
[360527104,1746844117351,154.54564903,0.0003,60]
[360527106,1746844127146,3624.4836362,0.00013368,2]
[360527112,1746844167665,310.72,0.00016989,2]
[360527113,1746844167890,310.72,0.00019253,2]
[360527126,1746844231576,-866.09776579,0.0001961,2]
[360527127,1746844231586,-169.69436072,0.00019697,2]
[360527128,1746844231595,-169.69,0.00019699,2]
[360527129,1746844231605,-180.57195977,0.000197,2]
[360527130,1746844231616,-204.55819555,0.0001984,2]
[360527131,1746844231625,-207.4,0.00019854,2]
[360527132,1746844231640,-549.2931,0.00019859,2]
[360527133,1746844231649,-200.0,0.00019863,2]
[360527134,1746844231659,-154.00185799,0.00019864,3]
[360527135,1746844231669,-322.2326,0.00019865,2]
[360527136,1746844231678,-299.2419,0.00019865,2]
[360527137,1746844231687,-1213.9157571,0.00019865,2]
[360527138,1746844231697,-179.28605362,0.00019865,2]
[360527139,1746844231706,-322.3556,0.00019866,2]
[360527140,1746844231716,-1200.0,0.00019868,2]
[360527141,1746844231725,-1213.91575701,0.00019869,2]
[360527142,1746844231735,-300.0,0.00019872,2]
[360527143,1746844231745,-200.0,0.00019872,2]
[360527144,1746844231754,-1213.91575701,0.00019873,2]
[360527145,1746844231763,-300.0,0.00019876,2]
[360527146,1746844231774,-1213.91575701,0.00019877,2]
[360527147,1746844231783,-1213.91575701,0.00019881,2]
[360527148,1746844231792,-1213.91575701,0.00019884,2]
[360527150,1746844231801,-245.58176917,0.00019886,2]
[360527152,1746844231810,-1213.91575701,0.00019888,2]
[360527154,1746844231819,-1213.91575701,0.00019892,2]
[360527156,1746844231828,-1213.91575701,0.00019896,2]
[360527157,1746844231839,-1268.2463865,0.00019899,2]
[360527158,1746844231848,-1213.91575701,0.000199,2]
[360527159,1746844231858,-879.0,0.00019923,2]
[360527160,1746844231868,-155.57236507,0.00019937,2]
[360527161,1746844231877,-14274.90293387,0.00019949,2]
[360527162,1746844231888,-1129.806,0.00019954,2]
[360527163,1746844231898,-154.17,0.00019954,2]
[360527164,1746844231908,-255.21,0.00019954,2]
[360527166,1746844231918,-928.0,0.00019958,2]
[360527168,1746844231927,-8895.3630542,0.00019959,2]
[360527170,1746844231936,-18206.74898841,0.00019959,2]
[360527172,1746844231948,-385.17241004,0.00019959,2]
[360527175,1746844231958,-9352.00000001,0.00019959,2]
[360527193,1746844239841,-998.7480316,0.00019959,2]
[360527194,1746844239854,-365.22065627,0.00019959,2]
[360527195,1746844239872,-20189.81812938,0.00019959,2]
[360527196,1746844239891,-9844.04928429,0.00019959,2]
[360527197,1746844239901,-400.0,0.00019963,2]
[360527198,1746844239912,-400.0,0.00019963,2]
[360527199,1746844239922,-240.93652194,0.00019963,2]
[360527200,1746844239933,-400.0,0.00019963,2]
[360527201,1746844239943,-400.0,0.00019963,2]
[360527202,1746844239953,-400.0,0.00019963,2]
[360527203,1746844239962,-400.0,0.00019963,2]
[360527204,1746844239972,-400.0,0.00019963,2]
[360527205,1746844239982,-594.19,0.00019963,2]
[360527206,1746844239991,-400.0,0.00019963,2]
[360527207,1746844240000,-400.0,0.00019963,2]
[360527208,1746844240010,-400.0,0.00019963,2]
[360527209,1746844240019,-695.37,0.00019963,2]
[360527210,1746844240029,-691.52,0.00019963,2]
[360527211,1746844240038,-373.49863303,0.00019963,2]
[360527212,1746844240047,-501.98493693,0.00019963,2]
[360527213,1746844240056,-436.8210694,0.00019963,2]
[360527214,1746844240066,-400.0,0.00019963,2]
[360527215,1746844240075,-170.73909891,0.00019963,2]
[360527216,1746844240084,-400.0,0.00019963,2]
[360527217,1746844240093,-549.16319549,0.00019963,2]
[360527218,1746844240102,-400.0,0.00019963,2]
[360527219,1746844240112,-471.35851873,0.00019963,2]
[360527220,1746844240121,-400.0,0.00019963,2]
[360527221,1746844240131,-400.0,0.00019963,2]
[360527222,1746844240140,-400.0,0.00019963,2]
[360527223,1746844240150,-1915.78,0.00019963,2]
[360527224,1746844240159,-400.0,0.00019963,2]
[360527225,1746844240168,-407.26,0.00019963,2]
[360527226,1746844240179,-400.0,0.00019963,2]
[360527227,1746844240188,-400.0,0.00019963,2]
[360527228,1746844240198,-400.0,0.00019963,2]
[360527229,1746844240208,-400.0,0.00019963,2]
[360527230,1746844240217,-400.0,0.00019963,2]
[360527231,1746844240226,-508.47,0.00019963,2]
[360527232,1746844240237,-400.0,0.00019964,2]
[360527233,1746844240247,-400.0,0.00019964,2]
[360527234,1746844240256,-527.81399726,0.00019964,2]
[360527235,1746844240266,-180.00401471,0.00019964,2]
[360527236,1746844240278,-400.0,0.00019964,2]
[360527237,1746844240287,-393.66477102,0.00019964,2]
[360527238,1746844240296,-500.0,0.00019964,2]
[360527239,1746844240305,-500.0,0.00019964,2]
[360527240,1746844240314,-500.0,0.00019964,2]
[360527241,1746844240323,-500.0,0.00019964,2]
[360527242,1746844240333,-500.0,0.00019964,2]
[360527243,1746844240342,-364.29497943,0.00019964,2]
[360527244,1746844240351,-500.0,0.00019964,2]
[360527245,1746844240360,-500.0,0.00019964,2]
[360527246,1746844240370,-500.0,0.00019964,2]
[360527247,1746844240379,-500.0,0.00019964,2]
[360527248,1746844240390,-500.0,0.00019964,2]
[360527249,1746844240399,-500.0,0.00019964,2]
[360527250,1746844240409,-500.0,0.00019964,2]
[360527251,1746844240418,-500.0,0.00019964,2]
[360527252,1746844240427,-500.0,0.00019964,2]
[360527253,1746844240436,-500.0,0.00019964,2]
[360527254,1746844240446,-500.0,0.00019964,2]
[360527255,1746844240455,-500.0,0.00019964,2]
[360527256,1746844240465,-500.0,0.00019964,2]
[360527257,1746844240474,-500.0,0.00019964,2]
[360527258,1746844240483,-500.0,0.00019964,2]
[360527259,1746844240492,-500.0,0.00019964,2]
[360527260,1746844240502,-500.0,0.00019964,2]
[360527261,1746844240511,-500.0,0.00019964,2]
[360527262,1746844240521,-547.89047672,0.00019964,2]
[360527263,1746844240531,-500.0,0.00019964,2]
[360527264,1746844240541,-500.0,0.00019964,2]
[360527265,1746844240551,-500.0,0.00019964,2]
[360527266,1746844240560,-500.0,0.00019964,2]
[360527267,1746844240570,-500.0,0.00019964,2]
[360527268,1746844240579,-500.0,0.00019964,2]
[360527269,1746844240589,-500.0,0.00019964,2]
[360527270,1746844240598,-500.0,0.00019964,2]
[360527271,1746844240607,-500.0,0.00019964,2]
[360527272,1746844240617,-500.0,0.00019964,2]
[360527273,1746844240626,-500.0,0.00019964,2]
[360527274,1746844240639,-500.0,0.00019964,2]
[360527275,1746844240649,-400.0,0.00019964,2]
[360527276,1746844240659,-162.59490731,0.00019964,2]
[360527277,1746844240670,-400.0,0.00019964,2]
[360527278,1746844240680,-400.0,0.00019964,2]
[360527279,1746844240689,-500.0,0.00019964,2]
[360527280,1746844240699,-500.0,0.00019964,2]
[360527281,1746844240708,-500.0,0.00019964,2]
[360527282,1746844240718,-500.0,0.00019964,2]
[360527283,1746844240727,-500.0,0.00019964,2]
[360527284,1746844240737,-500.0,0.00019964,2]
[360527285,1746844240747,-350.0,0.00019964,2]
[360527286,1746844240756,-500.0,0.00019964,2]
[360527287,1746844240765,-500.0,0.00019964,2]
[360527288,1746844240775,-500.0,0.00019964,2]
[360527289,1746844240784,-500.0,0.00019964,2]
[360527290,1746844240793,-500.0,0.00019964,2]
[360527291,1746844240802,-1162.68,0.00019964,2]
[360527292,1746844240811,-252.98996071,0.00019964,2]
[360527293,1746844240824,-147.01003929,0.00019964,2]
[360527294,1746844240833,-400.0,0.00019964,2]
[360527295,1746844240842,-400.0,0.00019964,2]
[360527296,1746844240851,-514.1750834,0.00019964,2]
[360527297,1746844240860,-400.0,0.00019964,2]
[360527298,1746844240870,-400.0,0.00019964,2]
[360527299,1746844240879,-344.9656691,0.00019964,2]
[360527300,1746844240889,-400.0,0.00019964,2]
[360527301,1746844240898,-387.12439881,0.00019964,2]
[360527302,1746844240908,-400.0,0.00019964,2]
[360527303,1746844240917,-400.0,0.00019964,2]
[360527304,1746844240927,-407.8748094,0.00019964,2]
[360527305,1746844240948,-82.18493108,0.00019964,2]
[360527306,1746844240957,-371.69346892,0.00019964,2]
[360527307,1746844240969,-28.30653108,0.00019964,2]
[360527308,1746844240978,-400.0,0.00019964,2]
[360527309,1746844240987,-364.03163088,0.00019964,2]
[360527310,1746844240997,-400.0,0.00019964,2]
[360527311,1746844241007,-400.0,0.00019964,2]
[360527312,1746844241016,-522.94726512,0.00019964,2]
[360527313,1746844241025,-209.13078625,0.00019964,2]
[360527314,1746844241034,-400.0,0.00019964,2]
[360527315,1746844241044,-400.0,0.00019964,2]
[360527316,1746844241053,-400.0,0.00019964,2]
[360527317,1746844241062,-400.0,0.00019964,2]
[360527318,1746844241072,-400.0,0.00019964,2]
[360527319,1746844241081,-505.13409398,0.00019964,2]
[360527320,1746844241092,-416.55700735,0.00019964,2]
[360527321,1746844241102,-531.63544139,0.00019964,2]
[360527322,1746844241112,-400.0,0.00019964,2]
[360527323,1746844241122,-450.0,0.00019964,2]
[360527324,1746844241132,-400.0,0.00019964,2]
[360527325,1746844241141,-498.34637213,0.00019964,2]
[360527326,1746844241151,-400.0,0.00019964,2]
[360527327,1746844241160,-400.0,0.00019964,2]
[360527328,1746844241169,-400.0,0.00019964,2]
[360527329,1746844241180,-400.0,0.00019964,2]
[360527330,1746844241189,-400.0,0.00019964,2]
[360527331,1746844241199,-515.69461703,0.00019964,2]
[360527332,1746844241208,-400.0,0.00019964,2]
[360527333,1746844241217,-431.49895742,0.00019964,2]
[360527334,1746844241227,-400.0,0.00019964,2]
[360527335,1746844241237,-400.0,0.00019964,2]
[360527336,1746844241246,-400.0,0.00019964,2]
[360527337,1746844241255,-400.0,0.00019964,2]
[360527338,1746844241264,-500.67321502,0.00019964,2]
[360527339,1746844241273,-400.0,0.00019964,2]
[360527340,1746844241283,-400.0,0.00019964,2]
[360527341,1746844241292,-400.0,0.00019964,2]
[360527342,1746844241301,-501.54826539,0.00019964,2]
[360527343,1746844241311,-400.0,0.00019964,2]
[360527344,1746844241320,-400.0,0.00019964,2]
[360527345,1746844241329,-400.0,0.00019964,2]
[360527346,1746844241341,-400.0,0.00019964,2]
[360527347,1746844241351,-258.80789646,0.00019964,2]
[360527348,1746844241360,-400.0,0.00019964,2]
[360527349,1746844241370,-516.37238113,0.00019964,2]
[360527350,1746844241380,-484.96837224,0.00019964,2]
[360527351,1746844241390,-400.0,0.00019964,2]
[360527352,1746844241399,-400.0,0.00019964,2]
[360527353,1746844241408,-400.0,0.00019964,2]
[360527354,1746844241418,-400.0,0.00019964,2]
[360527355,1746844241427,-475.86392181,0.00019964,2]
[360527356,1746844241437,-400.0,0.00019964,2]
[360527357,1746844241446,-466.56133596,0.00019964,2]
[360527358,1746844241456,-400.0,0.00019964,2]
[360527359,1746844241465,-400.0,0.00019964,2]
[360527360,1746844241474,-400.0,0.00019964,2]
[360527361,1746844241483,-400.0,0.00019964,2]
[360527362,1746844241495,-400.0,0.00019964,2]
[360527363,1746844241505,-400.0,0.00019964,2]
[360527364,1746844241514,-400.0,0.00019964,2]
[360527365,1746844241524,-400.0,0.00019964,2]
[360527366,1746844241533,-400.0,0.00019964,2]
[360527367,1746844241543,-400.0,0.00019964,2]
[360527368,1746844241552,-400.0,0.00019964,2]
[360527369,1746844241562,-2107.97,0.00019964,2]
[360527370,1746844241571,-400.0,0.00019964,2]
[360527371,1746844241581,-400.0,0.00019964,2]
[360527372,1746844241590,-400.0,0.00019964,2]
[360527373,1746844241599,-400.0,0.00019964,2]
[360527374,1746844241608,-400.0,0.00019964,2]
[360527375,1746844241619,-400.0,0.00019964,2]
[360527376,1746844241629,-488.32084683,0.00019964,2]
[360527377,1746844241641,-469.49,0.00019964,2]
[360527378,1746844241651,-485.91214872,0.00019964,2]
[360527379,1746844241660,-525.5284123,0.00019964,2]
[360527380,1746844241671,-400.0,0.00019964,2]
[360527381,1746844241681,-400.0,0.00019964,2]
[360527382,1746844241691,-400.0,0.00019964,2]
[360527383,1746844241700,-400.0,0.00019964,2]
[360527384,1746844241711,-400.0,0.00019964,2]
[360527385,1746844241720,-400.0,0.00019964,2]
[360527386,1746844241730,-400.0,0.00019964,2]
[360527387,1746844241739,-400.0,0.00019964,2]
[360527388,1746844241749,-400.0,0.00019964,2]
[360527389,1746844241759,-400.0,0.00019964,2]
[360527390,1746844241768,-400.0,0.00019964,2]
[360527391,1746844241778,-400.0,0.00019964,2]
[360527392,1746844241787,-400.0,0.00019964,2]
[360527393,1746844241797,-400.0,0.00019964,2]
[360527394,1746844241809,-400.0,0.00019964,2]
[360527395,1746844241819,-400.0,0.00019964,2]
[360527396,1746844241828,-400.0,0.00019964,2]
[360527397,1746844241847,-400.0,0.00019964,2]
[360527398,1746844241858,-400.0,0.00019964,2]
[360527399,1746844241868,-400.0,0.00019964,2]
[360527400,1746844241877,-400.0,0.00019964,2]
[360527401,1746844241887,-499.96118887,0.00019964,2]
[360527402,1746844241896,-4190.16675504,0.00019964,2]
[360527408,1746844242498,-942.316296,0.00019964,2]
[360527409,1746844242555,-562.6023957,0.00019964,2]
[360527410,1746844242617,-400.0,0.00019963,2]
[360527411,1746844242631,-23122.92455326,0.00019964,2]
[360527412,1746844242641,-522.14078315,0.00019964,2]
[360527413,1746844242650,-151.0,0.00019964,2]
[360527414,1746844242659,-400.0,0.00019964,2]
[360527415,1746844242669,-450.0,0.00019964,2]
[360527416,1746844242681,-450.0,0.00019964,2]
[360527418,1746844242691,-1203.53,0.00019964,2]
[360527419,1746844242700,-500.0,0.00019964,2]
[360527420,1746844242711,-776.92,0.00019964,2]
[360527421,1746844242721,-181.60357627,0.00019964,2]
[360527422,1746844242731,-767.07,0.00019964,2]
[360527423,1746844242740,-1378.269386,0.00019964,2]
[360527424,1746844242750,-400.0,0.00019964,2]
[360527425,1746844242760,-515.53174921,0.00019964,2]
[360527426,1746844242769,-1378.269386,0.00019964,2]
[360527427,1746844242778,-151.0,0.00019964,2]
[360527428,1746844242788,-400.0,0.00019964,2]
[360527429,1746844242798,-400.0,0.00019964,2]
[360527430,1746844242807,-400.0,0.00019964,2]
[360527431,1746844242816,-400.0,0.00019964,2]
[360527432,1746844242825,-400.0,0.00019964,2]
[360527433,1746844242835,-400.0,0.00019964,2]
[360527434,1746844242843,-151.0,0.00019964,2]
[360527435,1746844242853,-151.0,0.00019964,2]
[360527436,1746844242862,-198.02080004,0.00019964,2]
[360527437,1746844242872,-400.0,0.00019964,2]
[360527438,1746844242881,-400.0,0.00019964,2]
[360527439,1746844242890,-594.19,0.00019964,2]
[360527440,1746844242899,-400.0,0.00019964,2]
[360527441,1746844242908,-505.15278118,0.00019964,2]
[360527442,1746844242919,-400.0,0.00019964,2]
[360527443,1746844242928,-521.88,0.00019964,2]
[360527444,1746844242937,-400.0,0.00019964,2]
[360527445,1746844242947,-400.0,0.00019964,2]
[360527446,1746844242956,-400.0,0.00019964,2]
[360527447,1746844242965,-850.19,0.00019964,2]
[360527448,1746844242974,-536.72326041,0.00019964,2]
[360527449,1746844242983,-400.0,0.00019964,2]
[360527450,1746844242992,-151.0,0.00019964,2]
[360527451,1746844243002,-400.0,0.00019964,2]
[360527452,1746844243011,-400.0,0.00019964,2]
[360527453,1746844243020,-400.0,0.00019964,2]
[360527454,1746844243029,-272.94361768,0.00019964,2]
[360527455,1746844243039,-400.0,0.00019964,2]
[360527456,1746844243050,-400.0,0.00019964,2]
[360527457,1746844243059,-400.0,0.00019964,2]
[360527458,1746844243068,-695.37,0.00019964,2]
[360527459,1746844243077,-559.74,0.00019964,2]
[360527460,1746844243087,-858.11,0.00019964,2]
[360527461,1746844243096,-400.0,0.00019964,2]
[360527462,1746844243105,-151.0,0.00019964,2]
[360527463,1746844243114,-547.00545465,0.00019964,2]
[360527464,1746844243123,-151.0,0.00019964,2]
[360527465,1746844243133,-749.6,0.00019964,2]
[360527466,1746844243142,-691.52,0.00019964,2]
[360527467,1746844243151,-151.0,0.00019964,2]
[360527468,1746844243160,-476.78,0.00019964,2]
[360527469,1746844243169,-1385.77,0.00019964,2]
[360527470,1746844243180,-400.0,0.00019964,2]
[360527471,1746844243189,-400.0,0.00019964,2]
[360527472,1746844243198,-400.0,0.00019964,2]
[360527473,1746844243208,-532.23582841,0.00019964,2]
[360527474,1746844243218,-643.42,0.00019964,2]
[360527475,1746844243229,-400.0,0.00019964,2]
[360527476,1746844243239,-151.0,0.00019964,2]
[360527477,1746844243250,-400.0,0.00019964,2]
[360527478,1746844243259,-450.0,0.00019964,2]
[360527479,1746844243268,-151.0,0.00019964,2]
[360527480,1746844243277,-400.0,0.00019964,2]
[360527481,1746844243287,-152.569309,0.00019964,2]